fUSD/lending_fUSD_20250804
["ID","MTS","AMOUNT","RATE_DAILY","PERIOD"]
[377314848,1754339432912,-150.0,0.00047256,2]
[377314849,1754339432922,-1500.0,0.00047256,120]
[377314850,1754339432931,-3432.83,0.0004727,120]
[377314853,1754339432941,-156.88450279,0.00047305,120]
[377314854,1754339432951,-151.62,0.00047444,2]
[377314856,1754339432960,-165.64,0.00047561,2]
[377314859,1754339432970,-152.0,0.00047561,4]
[377314860,1754339432979,-567.58,0.00047692,2]
[377314862,1754339432989,-511.0,0.00047744,10]
[377314864,1754339432998,-1264.70573802,0.00047819,120]
[377314866,1754339433007,-787.44291558,0.0004788,100]
[377314868,1754339433017,-1001.0,0.000479,2]
[377314870,1754339433026,-250.0,0.00047978,120]
[377314872,1754339433036,-429.51,0.00047978,4]
[377314874,1754339433046,-735.02,0.00047978,2]
[377314876,1754339433056,-160.0,0.00048,90]
[377314878,1754339433066,-27013.69728811,0.00048,91]
[377314879,1754339433076,-25816.93,0.00048,120]
[377314880,1754339433085,-150.0,0.000481,120]
[377314881,1754339433095,-152.0,0.000481,120]
[377314882,1754339433105,-150.0,0.00048252,30]
[377314883,1754339433116,-359.08,0.00048278,30]
[377314884,1754339433129,-165.39,0.00048278,30]
[377314885,1754339433138,-537.09,0.00048278,30]
[377314886,1754339433149,-537.09,0.00048278,30]
[377314887,1754339433159,-537.09,0.00048278,30]
[377314888,1754339433170,-535.31,0.00048278,30]
[377314889,1754339433180,-172.88,0.00048278,30]
[377314890,1754339433189,-172.88,0.00048278,30]
[377314891,1754339433199,-172.88,0.00048278,30]
[377314892,1754339433210,-160.0,0.00048356,90]
[377314893,1754339433219,-511.0,0.00048465,11]
[377314894,1754339433231,-6248.78576185,0.00048471,15]
[377314895,1754339433240,-718.50429,0.00048472,42]
[377314896,1754339433249,-150.0,0.00048552,30]
[377314897,1754339433259,-150.0,0.00048552,30]
[377314898,1754339433269,-150.0,0.00048552,30]
[377314899,1754339433278,-156.88450279,0.00048602,120]
[377314900,1754339433287,-150.0,0.00048619,120]
[377314901,1754339433297,-150.0,0.0004865,7]
[377314902,1754339433307,-310.86,0.00048697,120]
[377314903,1754339433319,-150.0,0.00048721,7]
[377314904,1754339433328,-151.0,0.00048748,120]
[377314905,1754339433338,-172.88,0.000488,30]
[377314906,1754339433347,-466.51,0.00048941,30]
[377314907,1754339433358,-795.68,0.00048941,30]
[377314908,1754339433368,-795.68,0.00048941,30]
[377314909,1754339433377,-441.71,0.00048941,30]
[377314910,1754339433387,-1805.66,0.0004899,2]
[377314911,1754339433396,-150.0,0.00048991,7]
[377314912,1754339433405,-386357.486077,0.00048999,44]
[377314913,1754339433415,-7055.95920961,0.00049,61]
[377314914,1754339433425,-101047.4542345,0.00049,90]
[377314915,1754339433435,-150.0,0.00049017,7]
[377314916,1754339433444,-150.47,0.00049078,30]
[377314917,1754339433454,-173.84,0.00049078,30]
[377314918,1754339433463,-165.39,0.00049078,30]
[377314919,1754339433472,-769.24,0.00049078,30]
[377314920,1754339433482,-359.08,0.00049078,30]
[377314921,1754339433491,-150.0,0.00049078,30]
[377314922,1754339433500,-537.09,0.00049078,30]
[377314923,1754339433510,-301.36,0.00049078,30]
[377314924,1754339433519,-172.88,0.00049078,30]
[377314925,1754339433528,-537.09,0.00049078,30]
[377314926,1754339433538,-172.88,0.00049078,30]
[377314927,1754339433548,-172.88,0.00049078,30]
[377314928,1754339433558,-172.88,0.00049078,30]
[377314929,1754339433567,-150.0,0.000491,2]
[377314930,1754339433577,-2429.55,0.0004912,120]
[377314931,1754339433587,-172.88,0.00049178,30]
[377314932,1754339433598,-511.0,0.00049186,14]
[377314933,1754339433607,-989.0,0.000492,2]
[377314934,1754339433619,-208.45,0.00049212,14]
[377314935,1754339433629,-150.0,0.00049276,7]
[377314936,1754339433639,-150.0,0.00049291,7]
[377314937,1754339433649,-150.0,0.00049315,120]
[377314938,1754339433659,-150.0,0.00049315,120]
[377314939,1754339433669,-150.0,0.00049315,120]
[377314940,1754339433680,-150.0,0.00049315,120]
[377314941,1754339433690,-150.0,0.00049315,120]
[377314942,1754339433700,-150.0,0.00049315,120]
[377314943,1754339433710,-150.0,0.00049315,120]
[377314944,1754339433720,-500.0,0.00049315,120]
[377314945,1754339433731,-150.0,0.00049315,120]
[377314946,1754339433741,-150.0,0.00049315,120]
[377314947,1754339433751,-151.50305967,0.00049315,120]
[377314948,1754339433762,-150.0,0.00049315,120]
[377314949,1754339433772,-150.0,0.00049315,120]
[377314950,1754339433782,-150.0,0.00049315,120]
[377314951,1754339433792,-150.0,0.00049315,120]
[377314952,1754339433802,-872.0,0.00049315,120]
[377314953,1754339433812,-150.0,0.00049315,120]
[377314954,1754339433822,-150.0,0.00049315,120]
[377314955,1754339433832,-500.0,0.00049315,120]
[377314956,1754339433842,-500.0,0.00049315,120]
[377314957,1754339433852,-150.0,0.00049315,120]
[377314958,1754339433863,-500.0,0.00049315,120]
[377314959,1754339433872,-150.0,0.00049315,60]
[377314960,1754339433882,-150.0,0.00049315,120]
[377314961,1754339433892,-150.0,0.00049315,120]
[377314962,1754339433902,-500.0,0.00049315,120]
[377314963,1754339433911,-150.0,0.00049315,120]
[377314964,1754339433921,-500.0,0.00049315,120]
[377314965,1754339433931,-157.47055637,0.00049315,120]
[377314966,1754339433941,-150.0,0.00049315,120]
[377314967,1754339433951,-500.0,0.00049315,120]
[377314968,1754339433962,-157.76211913,0.0004932,120]
[377314969,1754339433971,-150.0,0.00049352,30]
[377314970,1754339433981,-150.0,0.00049362,120]
[377314971,1754339433991,-150.0,0.00049362,120]
[377314972,1754339434000,-150.0,0.00049362,120]
[377314973,1754339434010,-150.0,0.00049362,120]
[377314974,1754339434020,-500.0,0.00049362,120]
[377314975,1754339434029,-150.0,0.00049362,120]
[377314976,1754339434039,-150.0,0.00049362,120]
[377314977,1754339434048,-150.0,0.00049362,120]
[377314978,1754339434058,-150.0,0.00049362,120]
[377314979,1754339434067,-500.0,0.00049362,120]
[377314980,1754339434377,-500.0,0.00049362,120]
[377314981,1754339434440,-202.30096397,0.00049362,120]
[377314982,1754339434450,-150.0,0.00049472,7]
[377314983,1754339434460,-150.0,0.00049476,7]
[377314984,1754339434469,-150.0,0.00049477,7]
[377314985,1754339434479,-150.0,0.00049581,7]
[377314986,1754339434487,-150.0,0.00049589,120]
[377314987,1754339434498,-150.0,0.00049589,120]
[377314988,1754339434508,-150.0,0.00049589,120]
[377314989,1754339434517,-150.0,0.00049589,120]
[377314990,1754339434527,-150.0,0.00049589,120]
[377314991,1754339434538,-150.0,0.00049589,120]
[377314992,1754339434547,-500.0,0.00049589,120]
[377314993,1754339434558,-150.0,0.00049589,120]
[377314994,1754339434568,-150.0,0.00049589,120]
[377314995,1754339434578,-872.0,0.00049589,120]
[377314996,1754339434588,-286.0,0.00049589,120]
[377314997,1754339434598,-500.0,0.00049589,120]
[377314998,1754339434607,-500.0,0.00049589,120]
[377314999,1754339434618,-500.0,0.00049589,120]
[377315000,1754339434628,-150.0,0.00049589,60]
[377315001,1754339434639,-500.0,0.00049589,120]
[377315002,1754339434648,-150.0,0.00049589,120]
[377315003,1754339434659,-500.0,0.00049589,120]
[377315004,1754339434668,-150.0,0.00049589,120]
[377315005,1754339434678,-500.0,0.00049589,120]
[377315006,1754339434688,-152.0,0.000496,120]
[377315007,1754339434698,-1000.0,0.000496,7]
[377315008,1754339434708,-4075.8145,0.00049612,2]
[377315009,1754339434718,-1491.84,0.00049612,2]
[377315010,1754339434727,-288.3876452,0.00049625,37]
[377315011,1754339434737,-150.0,0.00049633,7]
[377315012,1754339434747,-9183.60060559,0.00049635,15]
[377315013,1754339434757,-162.4168,0.00049635,2]
[377315014,1754339434767,-1000.0,0.00049635,2]
[377315015,1754339434777,-150.0,0.00049636,120]
[377315016,1754339434787,-150.0,0.00049636,120]
[377315017,1754339434798,-500.0,0.00049636,120]
[377315018,1754339434808,-150.0,0.00049636,120]
[377315019,1754339434818,-150.0,0.00049636,120]
[377315020,1754339434827,-500.0,0.00049636,120]
[377315021,1754339434837,-500.0,0.00049636,120]
[377315022,1754339434847,-150.0,0.0004969,7]
[377315023,1754339434857,-500.0,0.000497,18]
[377315024,1754339434870,-1151.76,0.000497,30]
[377315025,1754339434880,-150.0,0.00049706,7]
[377315026,1754339434889,-151.09,0.00049715,120]
[377315027,1754339434899,-413.43785994,0.00049715,7]
[377315028,1754339434908,-40111.2613222,0.00049716,4]
[377315029,1754339434918,-226.27615471,0.00049719,120]
[377315030,1754339434928,-200556.306611,0.00049725,4]
[377315031,1754339434937,-98039.4782087,0.00049725,4]
[377315032,1754339434947,-155.806924,0.00049725,120]
[377315033,1754339434956,-18355.76173422,0.00049725,4]
[377315034,1754339435822,-22892.98016917,0.00049725,4]
[377315049,1754339438070,-321.51,0.0003899,2]
[377315051,1754339438079,-321.51,0.00042604,2]
[377315053,1754339438089,-142.01255407,0.00045,120]
[377315067,1754339438230,-11.98744593,0.00045,120]
[377315069,1754339438240,-321.51,0.0004589,2]
[377315071,1754339438249,-321.51,0.0004659,2]
[377315073,1754339438259,-888.0,0.000471,3]
[377315075,1754339438268,-321.51,0.0004787,2]
[377315077,1754339438277,-418.5162765,0.0004934,3]
[377315079,1754339438289,-1357.4837235,0.0004934,3]
[377315081,1754339438299,-150.0,0.00049657,7]
[377315083,1754339438308,-151.0,0.00049725,120]
[377315085,1754339438318,-151.0,0.00049725,120]
[377315087,1754339438327,-8290.5162765,0.00049725,4]
[377315089,1754339438339,-2756.97143506,0.00049725,4]
[377315092,1754339438353,-436.75537069,0.00049725,4]
[377315094,1754339438365,-47545.16831936,0.00049725,4]
[377315096,1754339438375,-15689.51991206,0.00049725,4]
[377315099,1754339438398,-625.66281848,0.00049725,4]
[377315125,1754339438690,-328.0000003,0.00049725,4]
[377315127,1754339438701,-3510.0,0.00049725,4]
[377315130,1754339438713,-5795.23280547,0.00049725,4]
[377315132,1754339438724,-1686.83073192,0.00049725,4]
[377315246,1754339439813,-154.0,0.000466,120]
[377315248,1754339439823,-434.0,0.00049725,4]
[377315252,1754339439856,-19869.34277474,0.00049725,4]
[377315485,1754339442203,-2746.0,0.00049725,4]
[377315487,1754339442215,-1092.27862809,0.00049725,4]
[377315495,1754339442282,-711.47,0.00049725,4]
[377315586,1754339443246,-151.0,0.00033142,2]
[377315589,1754339443255,-154.0,0.000483,120]
[377315591,1754339443265,-718.5043,0.000496,47]
[377315592,1754339443274,-5483.00829142,0.00049725,4]
[377315595,1754339443286,-687.38183223,0.00049725,4]
[377315597,1754339443298,-1279.76209708,0.00049725,4]
[377315601,1754339443324,-331.02280492,0.00049725,4]
[377315604,1754339443349,-1133.0740582,0.00049725,4]
[377315607,1754339443361,-7721.88158677,0.00049725,4]
[377315611,1754339443372,-5062.5,0.00049725,4]
[377315614,1754339443383,-658.97860508,0.00049725,4]
[377315620,1754339443402,-569.03199972,0.00049725,4]
[377315624,1754339443426,-4326.80206659,0.00049725,4]
[377315864,1754339445814,-345.76,0.00047978,30]
[377315866,1754339445824,-292.11327727,0.00049725,4]
[377315955,1754339446638,-915.59059946,0.00049725,4]
[377315958,1754339446658,-9624.2752528,0.00049725,4]
[377315969,1754339446747,-7465.7180661,0.00049725,4]
[377315971,1754339446757,-5000.0,0.00049725,120]
[377315973,1754339446767,-158.07991181,0.00049726,26]
[377315975,1754339446777,-23026.99395885,0.00049726,120]
[377317662,1754339464839,-288.25847511,0.00038373,5]
[377317951,1754339573725,-150.0,0.00038373,5]
[377317954,1754339618923,-159.49749142,0.00038372,5]
[377317955,1754339622975,-240.50250858,0.00038372,5]
[377317956,1754339622998,-98.28080928,0.00038372,30]
[377317960,1754339661195,-196.92872783,0.00035093,7]
[377317961,1754339663568,-151.0,0.00033905,2]
[377317962,1754339663592,-152.00883827,0.00035093,7]
[377317963,1754339666383,-156.00656724,0.00035093,7]
[377317964,1754339677597,-151.0,0.0003415,2]
[377317965,1754339677620,-9.66586666,0.00035093,7]
[377317968,1754339767893,250.0,0.00015,2]
[377317980,1754340375542,171.10279915,0.00025,2]
[377317981,1754340376222,150.67,0.00013699,2]
[377317982,1754340379122,309.34,0.00030137,120]
[377317988,1754340631977,-150.67,0.00027397,2]
[377317989,1754340631988,-300.0,0.00030137,120]
[377317990,1754340631998,-250.0,0.00030137,2]
[377317991,1754340632008,-153.0,0.00031098,7]
[377317992,1754340632017,-151.0,0.00031098,7]
[377317993,1754340632027,-1213.0,0.00031098,7]
[377317994,1754340632036,-1213.0,0.00031098,7]
[377317995,1754340632045,-164.11802654,0.00031098,7]
[377317996,1754340632055,-293.77879816,0.00031098,7]
[377317997,1754340632066,-919.22120184,0.00031098,7]
[377317998,1754340632076,-837.92534758,0.00031098,7]
[377317999,1754340632238,-375.07465242,0.00031098,7]
[377318000,1754340632247,-448.98785231,0.00031098,7]
[377318001,1754340632258,-764.01214769,0.00031098,7]
[377318002,1754340632268,-1213.0,0.00031098,7]
[377318003,1754340632277,-1213.0,0.00031098,7]
[377318004,1754340632286,-1213.0,0.00032824,7]
[377318005,1754340632296,-1213.0,0.00032824,7]
[377318006,1754340632305,-155.0,0.00032824,7]
[377318007,1754340632314,-155.0,0.00032824,7]
[377318008,1754340632324,-205.88065986,0.00032824,7]
[377318009,1754340632333,-2.46,0.00035093,7]
[377318010,1754340632343,-338.783,0.00035093,7]
[377318011,1754340632352,-206.77786741,0.000359,33]
[377318012,1754340632362,-269.38728939,0.00037789,5]
[377318013,1754340632371,-500.0,0.00037789,5]
[377318014,1754340632383,-502.35566896,0.00037789,5]
[377318015,1754340632392,-1592.61258824,0.00038234,2]
[377318016,1754340632402,-850.0,0.00038272,2]
[377318017,1754340632411,-1921.19763626,0.00038273,2]
[377318018,1754340632421,-19951.32694462,0.00038273,2]
[377318052,1754340632598,-158.30758396,0.00038273,2]
[377318055,1754340632607,-165.12359307,0.00038273,2]
[377318057,1754340632617,-116.99063836,0.00038273,15]
[377318059,1754340632628,-671.81641093,0.00038273,15]
[377318061,1754340632642,-182.44566147,0.00038273,2]
[377318063,1754340632652,-206.0407889,0.0003836,2]
[377318065,1754340632662,-9898.2360456,0.00038361,3]
[377318067,1754340632674,-49155.4172969,0.00038361,3]
[377318069,1754340632683,-1340.25850388,0.0003837,2]
[377318072,1754340632693,-268.24568358,0.00038371,2]
[377318074,1754340632706,-8314.5371466,0.00038371,2]
[377318076,1754340632718,-607.79747743,0.00038371,2]
[377318085,1754340632814,-10085.70792009,0.00038371,2]
[377318089,1754340632840,-924.8827191,0.00038371,2]
[377318091,1754340632852,-2084.62435587,0.00038371,2]
[377318276,1754340637834,-1213.0,0.00031098,7]
[377318277,1754340637844,-23900.0,0.00038029,2]
[377318278,1754340637854,-98706.27814695,0.00038371,2]
[377318279,1754340637897,-0.009614,0.00038371,2]
[377318280,1754340637916,-254969.60052761,0.00038371,2]
[377318281,1754340637926,-291.00263377,0.00038373,5]
[377318282,1754340637935,-500.0,0.00038373,5]
[377318283,1754340637945,-500.0,0.00038373,5]
[377318284,1754340637954,-377.95877244,0.00038373,5]
[377318285,1754340637964,-501.70785629,0.00038373,5]
[377318286,1754340637974,-500.0,0.00038373,5]
[377318287,1754340637983,-500.0,0.00038373,5]
[377318288,1754340637993,-500.0,0.00038373,5]
[377318289,1754340638002,-500.0,0.00038373,5]
[377318290,1754340638012,-500.0,0.00038373,5]
[377318291,1754340638021,-182.44566147,0.00038884,2]
[377318292,1754340638031,-841.83515119,0.00038921,5]
[377318293,1754340638041,-500.0,0.00038921,5]
[377318294,1754340638050,-500.0,0.00038967,5]
[377318295,1754340638060,-500.81464652,0.00038967,5]
[377318296,1754340638069,-187.43709582,0.00038967,5]
[377318297,1754340638079,-500.0,0.00038967,5]
[377318298,1754340638088,-500.0,0.00038967,5]
[377318299,1754340638098,-500.0,0.00038967,2]
[377318300,1754340638107,-1000.0,0.00038992,2]
[377318301,1754340638116,-160.0,0.00039067,2]
[377318302,1754340638126,-457.2201239,0.00039092,2]
[377318303,1754340638135,-182.44566147,0.00039496,2]
[377318304,1754340638145,-219.2,0.00039564,60]
[377318305,1754340638155,-1921.19763621,0.00039676,2]
[377318306,1754340638164,-20109.63452853,0.0003972,2]
[377318307,1754340638174,-788.8070492,0.00040098,15]
[377318308,1754340638183,-182.44566147,0.00040107,120]
[377318309,1754340638193,-219.2,0.0004034,60]
[377318310,1754340638202,-182.44566147,0.00040719,120]
[377318311,1754340638212,-380.37,0.00040905,2]
[377318313,1754340638222,-1921.19763621,0.00041079,15]
[377318315,1754340638232,-150.67,0.00041096,2]
[377318317,1754340638242,-200.0,0.00041096,20]
[377318319,1754340638252,-219.2,0.00041116,60]
[377318321,1754340638262,-19684.5511142,0.00041158,3]
[377318323,1754340638272,-20109.63452853,0.00041168,15]
[377318325,1754340638281,-182.44566147,0.0004133,120]
[377318327,1754340638291,-165.12359303,0.00041491,28]
[377318329,1754340638301,-219.2,0.00041893,60]
[377318331,1754340638311,-788.8070492,0.00041922,15]
[377318333,1754340638320,-182.44566147,0.00041942,120]
[377318335,1754340638329,-1000.0,0.00042482,30]
[377318337,1754340638338,-1000.0,0.00042482,30]
[377318339,1754340638348,-1000.0,0.00042482,30]
[377318341,1754340638357,-1000.0,0.00042482,30]
[377318343,1754340638366,-1000.0,0.00042482,30]
[377318345,1754340638375,-1000.0,0.00042482,30]
[377318347,1754340638385,-1921.19763621,0.00042482,15]
[377318349,1754340638395,-182.44566147,0.00042553,120]
[377318351,1754340638404,-19684.5511142,0.00042605,3]
[377318353,1754340638413,-20109.63452853,0.00042615,15]
[377318355,1754340638422,-380.37,0.00042635,120]
[377318357,1754340638431,-219.2,0.00042669,60]
[377318359,1754340638441,-267.64904475,0.00043093,2]
[377318361,1754340638450,-182.44566147,0.00043164,120]
[377318363,1754340638459,-219.2,0.00043445,60]
[377318365,1754340638469,-788.8070492,0.00043747,15]
[377318367,1754340638478,-182.44566147,0.00043776,120]
[377318369,1754340638488,-320.78472812,0.000438,120]
[377318371,1754340638499,-614.66,0.00043855,2]
[377318373,1754340638509,-1000.0,0.00043866,2]
[377318375,1754340638519,-1921.19763621,0.00043885,15]
[377318377,1754340638529,-3314.94,0.00044032,2]
[377318379,1754340638545,-308.13420017,0.00044052,120]
[377318381,1754340638555,-193.47354386,0.00044052,7]
[377318383,1754340638566,-500.0,0.00044052,2]
[377318385,1754340638576,-500.0,0.00044052,120]
[377318387,1754340638588,-150.00328364,0.00044052,7]
[377318389,1754340638599,-500.0,0.00044052,120]
[377318391,1754340638611,-231.12871731,0.00044052,120]
[377318393,1754340638622,-500.0,0.00044052,120]
[377318395,1754340638632,-345.0979505,0.00044052,120]
[377318397,1754340638643,-500.0,0.00044052,2]
[377318399,1754340638652,-500.0,0.00044052,120]
[377318401,1754340638661,-500.0,0.00044052,120]
[377318403,1754340638671,-500.0,0.00044052,2]
[377318405,1754340638679,-387.44135942,0.00044052,2]
[377318407,1754340638689,-500.0,0.00044052,120]
[377318409,1754340638698,-500.0,0.00044052,120]
[377318411,1754340638707,-600.0,0.00044052,120]
[377318413,1754340638717,-500.0,0.00044052,120]
[377318414,1754340638726,-500.0,0.00044052,120]
[377318417,1754340638735,-500.0,0.00044052,120]
[377318419,1754340638746,-500.0,0.00044052,120]
[377318421,1754340638755,-500.0,0.00044052,120]
[377318423,1754340638764,-500.0,0.00044052,120]
[377318425,1754340638773,-500.0,0.00044052,120]
[377318427,1754340638784,-500.0,0.00044052,120]
[377318429,1754340638793,-500.0,0.00044052,120]
[377318431,1754340638802,-500.0,0.00044052,120]
[377318432,1754340638811,-500.0,0.00044052,120]
[377318434,1754340638821,-500.0,0.00044052,120]
[377318437,1754340638830,-500.0,0.00044052,120]
[377318439,1754340638840,-500.0,0.00044052,120]
[377318441,1754340638849,-500.0,0.00044052,120]
[377318443,1754340638859,-500.0,0.00044052,120]
[377318444,1754340638868,-500.0,0.00044052,120]
[377318447,1754340638878,-500.0,0.00044052,120]
[377318448,1754340638887,-16055.5339713,0.00044053,3]
[377318450,1754340638897,-20109.63452853,0.00044063,15]
[377318452,1754340638906,-151.0,0.00044209,120]
[377318455,1754340638916,-219.2,0.00044222,60]
[377318456,1754340638926,-380.37,0.00044366,120]
[377318459,1754340638936,-182.44566147,0.00044387,120]
[377318461,1754340638946,-841.59890878,0.0004457,2]
[377318463,1754340638955,-19684.5511142,0.00044572,3]
[377318465,1754340638964,-16055.5339713,0.00044572,3]
[377318467,1754340638974,-500.0,0.00044573,10]
[377318468,1754340638983,-500.0,0.00044573,10]
[377318471,1754340638994,-500.0,0.00044573,10]
[377318473,1754340639003,-500.0,0.00044573,10]
[377318504,1754340639289,-500.0,0.00044573,10]
[377318507,1754340639312,-898.893,0.00044581,71]
[377318509,1754340639322,-283.79,0.00044582,2]
[377318511,1754340639331,-165.12359303,0.00044709,28]
[377318513,1754340639340,-219.2,0.00044998,60]
[377318515,1754340639350,-182.44566147,0.00044999,120]
[377318517,1754340639359,-152.0,0.00045,120]
[377318519,1754340639368,-151.0,0.00045,120]
[377318521,1754340639378,-466.7,0.00045022,30]
[377318523,1754340639387,-1167.62,0.00045022,30]
[377318525,1754340639397,-503.11317667,0.00045121,10]
[377318527,1754340639407,-500.0,0.00045121,10]
[377318529,1754340639416,-503.5126455,0.00045121,10]
[377318531,1754340639425,-502.75402139,0.00045121,10]
[377318533,1754340639435,-300.0,0.00045163,30]
[377318535,1754340639444,-356.97,0.00045163,30]
[377318537,1754340639454,-1921.19763621,0.00045288,15]
[377318539,1754340639463,-16055.5339713,0.0004549,3]
[377318541,1754340639472,-19684.5511142,0.000455,3]
[377318543,1754340639482,-16055.5339713,0.000455,3]
[377318545,1754340639491,-20109.63452853,0.0004551,15]
[377318547,1754340639501,-788.8070492,0.00045571,15]
[377318549,1754340639511,-182.44566147,0.0004561,120]
[377318551,1754340639520,-151.0,0.00045722,120]
[377318553,1754340639531,-219.2,0.00045774,120]
[377318555,1754340639543,-250.0,0.00045853,120]
[377318557,1754340639554,-380.37,0.00046096,120]
[377318559,1754340639564,-594.54,0.00046155,120]
[377318561,1754340639573,-182.44566147,0.00046221,120]
[377318563,1754340639583,-500.0,0.00046266,2]
[377318565,1754340639594,-150.94,0.00046502,120]
[377318567,1754340639603,-305.7132,0.00046548,20]
[377318569,1754340639615,-338.79122226,0.00046565,2]
[377318571,1754340639626,-1000.0,0.00046565,30]
[377318573,1754340639637,-1000.0,0.00046565,30]
[377318575,1754340639648,-1000.0,0.00046565,30]
[377318577,1754340639658,-1000.0,0.00046565,30]
[377318579,1754340639668,-1000.0,0.00046565,30]
[377318581,1754340639678,-1000.0,0.00046565,30]
[377318583,1754340639688,-1000.0,0.00046565,30]
[377318585,1754340639698,-1000.0,0.00046565,30]
[377318587,1754340639708,-1000.0,0.00046565,30]
[377318589,1754340639718,-1000.0,0.00046565,30]
[377318591,1754340639727,-599.83291995,0.000466,10]
[377318593,1754340639736,-151.0,0.000466,120]
[377318595,1754340639746,-1921.19763621,0.00046691,15]
[377318597,1754340639756,-152.0,0.000467,120]
[377318599,1754340639766,-396.18,0.00046805,4]
[377318601,1754340639775,-16055.5339713,0.00046937,3]
[377318603,1754340639785,-19684.5511142,0.00046948,3]
[377318605,1754340639795,-20109.63452853,0.00046958,15]
[377318607,1754340639804,-666.0,0.00046968,3]
[377318609,1754340639813,-500.0,0.00046973,10]
[377318611,1754340639823,-1000.0,0.00047,120]
[377318613,1754340639832,-165.79,0.00047059,2]
[377318615,1754340639842,-517.0,0.00047186,10]
[377318617,1754340639853,-1000.0,0.000472,7]
[377318619,1754340639862,-151.0,0.00047234,120]
[377318621,1754340639871,-500.0,0.0004735,10]
[377318623,1754340639881,-500.0,0.0004735,10]
[377318626,1754340639892,-375.49749838,0.0004735,10]
[377318628,1754340639902,-788.8070492,0.00047396,15]
[377318631,1754340639912,-1000.0,0.00047399,14]
[377318633,1754340639922,-163.14316417,0.000475,90]
[377318635,1754340639932,-1000.0,0.00047503,14]
[377318637,1754340639941,-16055.5339713,0.00047507,3]
[377318639,1754340639951,-403.65702969,0.00047663,14]
[377318641,1754340639961,-252.52,0.0004774,2]
[377318643,1754340639971,-1103.69334599,0.00047819,120]
[377318645,1754340639980,-380.37,0.00047826,120]
[377318647,1754340639990,-501.35316118,0.00047898,10]
[377318649,1754340640000,-500.0,0.00047898,10]
[377318651,1754340640010,-165.12359303,0.00047927,28]
[377318653,1754340640020,-517.0,0.0004794,10]
[377318655,1754340640030,-1000.0,0.00048,120]
[377318657,1754340640040,-161.0,0.00048,90]
[377318659,1754340640049,-1000.0,0.00048068,10]
[377318661,1754340640059,-253.5,0.00048078,30]
[377318663,1754340640068,-359.08,0.00048078,30]
[377318665,1754340640078,-172.88,0.00048078,30]
[377318667,1754340640088,-359.08,0.00048078,30]
[377318669,1754340640097,-172.88,0.00048078,30]
[377318671,1754340640106,-1921.19763621,0.00048094,15]
[377318673,1754340640116,-1000.0,0.00048172,14]
[377318675,1754340640125,-1000.0,0.00048174,14]
[377318677,1754340640135,-151.0,0.000482,120]
[377318679,1754340640145,-150.0,0.00048233,2]
[377318681,1754340640155,-1000.0,0.00048306,14]
[377318683,1754340640165,-161.0,0.00048356,90]
[377318685,1754340640175,-1898.41241048,0.00048397,26]
[377318687,1754340640185,-152.0,0.000484,120]
[377318690,1754340640194,-20109.63452853,0.00048405,15]
[377318691,1754340640204,-16055.5339713,0.00048487,4]
[377318693,1754340640213,-300.0,0.00048497,120]
[377318695,1754340640222,-229.07,0.00048517,14]
[377318698,1754340640232,-160.41,0.00048517,14]
[377318700,1754340640242,-675.34952642,0.00048562,2]
[377318701,1754340640251,-150.0,0.00048605,7]
[377318704,1754340640261,-150.0,0.00048692,7]